Cogmind - Beta 12 @@@ ROGUE MODE // 2024.02.06 @ 21:24:32 // Winter2019/RPGLIKE Player: Luminiferous Result: Destroyed by as-16400 with Assembled Heavy Rifle Performance ------------- Evolutions (0) 0 Regions Visited (2) 400 Robots Destroyed (13) 65 Value Destroyed (225) 225 Prototype IDs (0) 0 Alien Tech Used (0) 0 Bonus (-42) -42 TOTAL SCORE: 648 Bonus ------- Friendly Fire -42 Cogmind --------- Core Integrity 0/600 Matter 300/300 Energy 250/250 System Corruption 0% Temperature Cool (0) Movement Rolling (100) Location -10/Mines Parts ------- > --- POWER (1) -------- Ion Engine > --- PROPULSION (2) --- Compact Wheel Compact Wheel > --- UTILITY (2) ------ (None) > --- WEAPON (2) ------- Small Laser Small Laser > --- INVENTORY (3) ---- Ion Engine Light Ion Engine Rocket Launcher Peak State ------------ > --- POWER ------------ Ion Engine > --- PROPULSION ------- Compact Wheel Compact Wheel > --- UTILITY ---------- (None) > --- WEAPON ----------- Small Laser Rocket Launcher > --- INVENTORY -------- Ion Engine Light Ion Engine Small Laser [Rating: 6] Favorites ----------- Power Ion Engine Engine Ion Engine Propulsion Compact Wheel Leg Aluminum Leg Wheel Compact Wheel Utility None Weapon Small Laser Energy Gun Small Laser Ballistic Gun Assault Rifle Launcher Rocket Launcher Build | -11 -10 -10 ------- Run | Jun Mat Min Slots Evolved 3 | 3 . . Power . | . . . Propulsion 1 | 1 . . Utility 1 | 1 . . Weapon 1 | 1 . . Parts Attached 9 | 3 2 4 Power . | . . . Engine . | . . . Core . | . . . Reactor . | . . . Propulsion 3 | 2 1 . Treads . | . . . Leg . | . . . Wheel 3 | 2 1 . Hover . | . . . Flight . | . . . Utility . | . . . Device . | . . . Storage . | . . . Processor . | . . . Hackware . | . . . Protection . | . . . Artifact . | . . . Weapon 6 | 1 1 4 Energy Gun 3 | . 1 2 Energy Cannon . | . . . Ballistic Gun 1 | 1 . . Ballistic Cannon . | . . . Launcher 2 | . . 2 Special Weapon . | . . . Impact Weapon . | . . . Slashing Weapon . | . . . Piercing Weapon . | . . . Special Melee Weapon . | . . . Unidentified Prototypes . | . . . Parts Lost . | . . . Power . | . . . Propulsion . | . . . Utility . | . . . Weapon . | . . . Highest Loss Streak . | . . . To Critical Strikes . | . . . Average Slot Usage (%) 71 | . 71 71 Engine 14 | . 14 14 Wheel 28 | . 28 28 Energy Gun 22 | . 21 27 Ballistic Gun 4 | . 7 . Naked Turns . | . . . Heaviest Build 10 | 8 8 10 Greatest Support 32 | 26 32 32 Greatest Overweight (x) 2 | 2 . . Average Overweight (x) . | . . . Largest Inventory Capacity 3 | 3 3 3 Average Capacity 3 | 3 3 3 Most Carried 3 | 2 3 3 Average Carried 2 | . 2 2 Final Capacity 3 | 3 3 3 Final Carried 3 | 1 3 3 Class Distribution -------------------- 100% | Mutant Dominant Class ---------------- Mutant | -10/Materials Mutant | -10/Mines Resources | -11 -10 -10 ----------- Run | Jun Mat Min Matter Collected 400 | 230 98 72 Remotely . | . . . Salvage Created 483 | . 343 140 Parts 20 | . 15 5 Haulers Intercepted 1 | . 1 . Recyclers Shooed 1 | . 1 . Parts Field Recycled . | . . . Retrieved Matter . | . . . Parts Self-Destructed . | . . . Prevented . | . . . Kills | -11 -10 -10 ------- Run | Jun Mat Min Combat Hostiles Destroyed 15 | . 6 9 Guns 11 | . 6 5 AOE 4 | . . 4 Classes Destroyed 6 | . 5 1 Hauler 1 | . 1 . Recycler 2 | . 1 1 Operator 1 | . 1 . Swarmer 6 | . 3 3 Grunt 3 | . 3 . Assembled 6 | . . 6 Best Kill Streak 7 | . 3 7 Combat Bots Only 6 | . 3 6 Max Kills in Single Turn 3 | . 1 3 Gunslinging 1 | . . 1 Exploded 2 | . . 2 Melee . | . . . Uniques/NPCs Destroyed . | . . . Combat | -11 -10 -10 -------- Run | Jun Mat Min Damage Taken 798 | . 246 552 Core 648 | . 202 446 Absorbed by Shields . | . . . Redirected to Core 490 | . 132 358 Core Remaining (%) 100 | 100 . . Volleys Fired 50 | . 39 11 Largest 2 | . 2 2 Hottest 80 | . 80 80 Shots Fired 100 | . 78 22 Gun 97 | . 78 19 Cannon . | . . . Launcher 3 | . . 3 Special . | . . . Kinetic 26 | . 26 . Thermal 71 | . 52 19 Explosive 3 | . . 3 Electromagnetic . | . . . Robot Hit Streak 12 | . 12 11 Robot Miss Streak 5 | . 5 2 Penetration Max . | . . . Secondary Targets 1 | . . 1 Max Gunslinging Chain 1 | . . 1 Shots Hit Robots 69 | . 54 15 Core Hits 37 | . 17 20 Critical Kills . | . . . Critical Parts Destroyed . | . . . Critical Strikes . | . . . Melee Attacks . | . . . Impact . | . . . Slashing . | . . . Piercing . | . . . Sneak Attacks . | . . . Combat Hostiles . | . . . Follow-up Attacks . | . . . Damage Inflicted 1186 | . 610 576 Guns 778 | . 610 168 Cannons . | . . . Explosions 405 | . . 405 Melee . | . . . Ramming 3 | . . 3 Kinetic 165 | . 165 . Thermal 613 | . 445 168 Explosive 405 | . . 405 Electromagnetic . | . . . Impact . | . . . Slashing . | . . . Piercing . | . . . Highest Corruption . | . . . Average Corruption . | . . . Corruption Purged . | . . . Corruption Blocked . | . . . Overload Shots . | . . . Overflow Damage 10 | . . 10 Projectiles . | . . . Explosions 10 | . . 10 Melee . | . . . Knockbacks . | . . . Impact . | . . . Kinetic . | . . . Secondary . | . . . Self-Inflicted Damage 74 | . . 74 Shots 2 | . . 2 Rammed 1 | . . 1 Targets Rammed 1 | . . 1 Kicked . | . . . Crushed . | . . . Highest Temperature 132 | . 90 132 Average Temperature 37 | . 36 40 Received Heat Transfer 205 | . 105 100 Siege Activations . | . . . Robots Corrupted . | . . . Combat Hostiles . | . . . Parts Fried . | . . . Impact Corruptions . | . . . Robots Melted . | . . . Combat Hostiles . | . . . Parts Melted 1 | . 1 . Heat Transferred 1375 | . 1000 375 Parts Sabotaged . | . . . Parts Stolen . | . . . Parts Stripped . | . . . Power Chain Reactions . | . . . Missiles Intercepted . | . . . Alert | -11 -10 -10 ------- Run | Jun Mat Min Peak Influence 182 | . 182 150 Initial 47 | . . 47 Average 91 | . 93 94 Maximum Alert Level . | . . . Low Security (%) 100 | 100 100 100 Level 1 . | . . . Level 2 . | . . . Level 3 . | . . . Level 4 . | . . . Level 5 . | . . . High Security . | . . . Max Security . | . . . Squads Dispatched 2 | . 1 1 Investigation 1 | . . 1 Extermination . | . . . Reinforcement 1 | . 1 . Assault . | . . . Garrison . | . . . Intercept . | . . . Searches Triggered . | . . . Construction Impeded . | . . . Haulers Reinforced . | . . . Active Scanning Responses . | . . . Cargo Convoy Interrupts . | . . . Stealth | -11 -10 -10 --------- Run | Jun Mat Min Distress Signals . | . . . Communications Jammed . | . . . Distress Signals . | . . . Times Spotted 37 | . 13 24 Peak Tracking Total 7 | . 3 7 Tactical Retreats . | . . . Traps | -11 -10 -10 ------- Run | Jun Mat Min Traps Triggered . | . . . Indirectly . | . . . Trap Hack Attempts . | . . . Triggered . | . . . Disarmed . | . . . Reprogrammed . | . . . Reused . | . . . Traps Extracted . | . . . Installed . | . . . Triggered . | . . . Machines | -11 -10 -10 ---------- Run | Jun Mat Min Machines Disabled 2 | . 1 1 Max in Single Turn 1 | . 1 1 Machines Repaired . | . . . Machines Sabotaged . | . . . Overloaded Fab Kills . | . . . Hacking | -11 -10 -10 --------- Run | Jun Mat Min Machines Accessed 4 | . 4 . Terminals 4 | . 4 . Fabricators . | . . . Repair Stations . | . . . Recycling Units . | . . . Scanalyzers . | . . . Garrison Access . | . . . Total Hacks 8 | . 8 . Successful 3 | . 3 . Failed 5 | . 5 . Catastrophic . | . . . Database Lockouts . | . . . Manual 8 | . 8 . Terminals 8 | . 8 . Fabricators . | . . . Repair Stations . | . . . Recycling Units . | . . . Scanalyzers . | . . . Garrison Access . | . . . Terminal Hacks 2 | . 2 . Terminal Index 1 | . 1 . Hauler Manifests 1 | . 1 . Fabricator Hacks . | . . . Repair Station Hacks . | . . . Recycling Unit Hacks . | . . . Scanalyzer . | . . . Garrison Access Hacks . | . . . Unauthorized Hacks 1 | . 1 . Terminals 1 | . 1 . Botnet 1 | . 1 . Fabricators . | . . . Repair Stations . | . . . Recycling Units . | . . . Scanalyzers . | . . . Garrison Access . | . . . Data Cores Recovered 1 | . 1 . Used 1 | . 1 . Hacking Detections 3 | . 3 . Full Trace Events 1 | . 1 . Feedback Events . | . . . Feedback Blocked . | . . . Robot Schematics Acquired . | . . . Robots Built . | . . . Authchips . | . . . Time . | . . . Total Robot Build Rating . | . . . Part Schematics Acquired . | . . . Parts Built . | . . . Authchips . | . . . Time . | . . . Total Part Build Rating . | . . . Parts Repaired . | . . . Time . | . . . Parts Recycled . | . . . Recycled Matter . | . . . Retrieved Matter . | . . . Retrieved Components . | . . . Parts Scanalyzed . | . . . Part Schematics Acquired . | . . . Parts Damaged . | . . . Bothacking | -11 -10 -10 ------------ Run | Jun Mat Min Used RIF Installer . | . . . Robots Hacked . | . . . Non-combat . | . . . Combat . | . . . Robot Hacks Applied . | . . . Relay Couplers Released . | . . . Fabnet Peak Effective % . | . . . Robots Rewired . | . . . Allies Hacked . | . . . Hacks Repelled . | . . . Allies | -11 -10 -10 -------- Run | Jun Mat Min Total Allies . | . . . Largest Group . | . . . Highest-Rated Group . | . . . Highest-Rated Ally . | . . . Total Orders . | . . . Ally Attacks . | . . . Total Damage . | . . . Kills . | . . . Allies Corrupted . | . . . Allies Melted . | . . . Intel | -11 -10 -10 ------- Run | Jun Mat Min Robot Analysis Total . | . . . Derelict Logs Recovered 1 | . . 1 Drone Launches . | . . . Drone Recoveries . | . . . Exploration | -11 -10 -10 ------------- Run | Jun Mat Min Turns Passed 1067 | 22 742 303 Spaces Moved 800 | 14 536 250 Core 2 | 2 . . Treads . | . . . Legs 4 | 4 . . Wheels 794 | 8 536 250 Hover . | . . . Flight . | . . . Fastest Speed 90 | 90 90 100 Average Speed 96 | 107 95 100 Slowest Speed 150 | 150 100 100 Overloaded Moves . | . . . Propulsion Burnouts . | . . . Robots Hopped . | . . . Cave-ins Triggered . | . . . Exploration Rate (%) 45 | 2 89 46 Regions Visited 2 Branch Regions 1 Pre-discovered Areas 1 | . . 1 Known Exits Taken . | . . . Unknown Exits Taken 2 | 1 1 . Scrap Searched 1 | . . 1 Spaces Dug . | . . . Terrain Destroyed 22 | . . 22 Melee . | . . . Projectile . | . . . AOE 22 | . . 22 Terrain Rammed . | . . . Walls Destroyed . | . . . Machines Disabled . | . . . Actions | -11 -10 -10 --------- Run | Jun Mat Min Total 990 | 21 690 279 Wait 119 | . 108 11 Move 798 | 13 535 250 Hop . | . . . Pick Up 7 | 4 2 1 Fast Attach 2 | . 2 . Attach 3 | 3 . . Detach . | . . . Swap 4 | . . 4 Drop 4 | 1 2 1 Fire 50 | . 39 11 Melee . | . . . Ram 1 | . . 1 Kick . | . . . Crush . | . . . Escape Stasis . | . . . Rewire . | . . . Trap . | . . . Miscellaneous 2 | . 2 . Route ------- -11/Junkyard -10/Materials (discovered 4 exits: [*Mat x3] / [*Min]) -10/Mines History --------- Turn | Location | Event 1 | -11/Junkyard | Upgraded with Propulsion slot (x1) 1 | -11/Junkyard | Upgraded with Utility slot (x1) 1 | -11/Junkyard | Upgraded with Weapon slot (x1) 1 | -11/Junkyard | Discovered new exit (range 1) 23 | -11/Junkyard | Entered Materials 270 | -10/Materials | Discovered new exit (range 5) 302 | -10/Materials | Build established: Mutant 467 | -10/Materials | Discovered new exit (range 9) 669 | -10/Materials | Discovered new exit (range 8) 731 | -10/Materials | Discovered new exit (range 6) 765 | -10/Materials | Entered Mines 766 | -10/Mines | Learned location of Storage (-8) 799 | -10/Mines | Learned Materials trap positions 887 | -10/Mines | Reached level 2 942 | -10/Mines | Received a Rocket Launcher from a helpful Derelict 959 | -10/Mines | Assembled infested the area 964 | -10/Mines | Assisted by a Guerilla fighting off Assembled 1026 | -10/Mines | Core integrity fell below 50% 1043 | -10/Mines | Core integrity fell below 20% 1045 | -10/Mines | Met a Derelict shopkeep closing up shop 1068 | -10/Mines | Destroyed by as-16400 with Assembled Heavy Rifle Last Messages --------------- 01045_ Destroyed Asb. Hover Unit. 01045_ as-95601 destroyed. 01047_ ALERT: Derelict activity detected in mines. Dispatching investigation squad. 01047_ as-84228 destroyed. 01048_ The unstable cave ceiling collapses. 01048_ R-06 Scavenger destroyed. 01048_ as-85366 destroyed. 01048_ as-37850 destroyed. 01048_ SHOP.Sys disabled. 01049_ 7B-XQJ(g): "Well, take what you want I guess, I've had enough of this place!" 01050_ The unstable cave ceiling collapses. 01053_ 7B-XQJ(g) destroyed. 01054_ The unstable cave ceiling collapses. 01058_ as-62223 destroyed. 01060_ The unstable cave ceiling collapses. 01061_ Acquired 25 matter. 01062_ The unstable cave ceiling collapses. 01063_ Acquired 17 matter. Map ----- +----------------------------------------------------+ | | | | | | | | | | | | | | | | | | | | | | | | | | | | | | | | | | | | | | | ??????????????????????????????????????????? | | ????????????????#####??????????#??????????? | | ??????????###??## ##??????? ?????????? | | ??????????#"]### ###### ?????????? | | ??????????#"! !# #????????? | | ??????????#"/# " a a a ????????????? | | ??????????#"[ " @ #???????????????????? | | ????????????#!! %[ ##???????????????????? | | ??????????#"!# = ##???????????????????? | | ?????????????## %%[ ##??????????????????? | | ??????????##### ] #??????????????????? | | ??????????# #??????????????????? | | ??????????#*% ###??????????????????? | | ??????????## # # #???????????????????? | | ???????????# # % %# # #???????????????????? | | ???????????#%%]!% ####???????????????????? | | ???????????# % ## # #????????????????????? | | ???????????# t # ##????????????????????? | | ???????????# # ###?????????????????????? | | ???????????## # ####??????????????????????? | | ????????????# ###??????##?????????????????? | | ????????????# #???????## ##???????????????? | | ????????????# #???????# #############???? | | ????????????# ####?????# ## !!%! #???? | | ?????????#### #??????# ## ## !!! #???? | | ??######?# #??????# ## ## !!!! #???? | | ??# #?# #?????## !!! #???? | | ??# #?## ##?????# ! !! #???? | | ??# #??## #??????# ### #???? | | ??# ##### ######?## #?# ###???? | | ??# %# # #??## ##?# #????? | +----------------------------------------------------+ Best States ------------- Heat Dissipation 25 Energy Generation 10 Energy Capacity 250 Matter Stores 300 Matter Capacity 300 Sight Range 16 Terrain Scan Density 10 Evasion (%) 42 Item Schematics ----------------- None Robot Schematics ------------------ None Fabricated ------------ Nothing Alien Tech Used ----------------- None Achievements -------------- None Challenges ------------ None RPGLIKE | -11 -10 -10 --------- Run | Jun Mat Min Levels Raised 1 | . . 1 XP Earned 4845 | 3000 920 925 XP Spent 3000 | 3000 . . Upgrades 6 | 6 . . Propulsion Slot 1 | 1 . . Utility Slot 1 | 1 . . Weapon Slot 1 | 1 . . Inventory Capacity 3 | 3 . . Protomatter Created 42 | . 33 9 Integrity Restored 45 | . 45 . Core 45 | . 45 . Protomatter Decayed 18 | . 18 . Game ------ Seed RocketDecoderProtection Manual? 0 Play Time 00:10:48 Cumulative 33.2 hours Start 2024.02.06 @ 21:15:04 End 2024.02.06 @ 21:24:32 Sessions 1 Manual Loads 0 Difficulty Rogue Special Mode Winter2019/RPGLIKE Game No. 63 Rogue 63 Adventurer 0 Explorer 0 Win Type - Total 1 Types 1/0/0/0/0/0/0/0/0 Lore% 28 Gallery% 40 Achievement% 34 Wizard Run 0 Options --------- ASCII 0 Keyboard 0 Movement Mouse Keybinds 1 Fullscreen 2 Font 18/SmallcapsGlow Map View 76x50 Tactical HUD 1 Map Filters NONE Filters BRIGHTNESS(100) Steam 1 RUN: 256bfb81-9898-46a7-bf39-3b427b270bb4